Cogmind - Beta 15 @@@ ROGUE MODE // 2025.05.24 @ 15:18:43 Player: Epsilon 11 Result: Destroyed by 3D-QV9(R) with Subdweller Machine Gun Performance ------------- Evolutions (0) 0 Regions Visited (2) 400 Robots Destroyed (18) 90 Value Destroyed (510) 510 Prototype IDs (0) 0 Alien Tech Used (0) 0 Bonus (0) 0 TOTAL SCORE: 1000 Bonus ------- None Cogmind --------- Core Integrity 0/250 Matter 286/300 Energy 83/100 System Corruption 0% Temperature Cool (0) Movement Rolling (90) Location -10/Subcaves Parts ------- > --- POWER (1) -------- (None) > --- PROPULSION (2) --- Wheel Compact Wheel > --- UTILITY (2) ------ Small Storage Unit Utility Shielding > --- WEAPON (2) ------- Subdweller Machine Gun Subdweller Machine Gun > --- INVENTORY (8) ---- Subdweller Monowheel Machine Analyzer Subdweller Optics Beam Rifle Spread Laser Multitool Makeshift Axe Peak State ------------ > --- POWER ------------ Makeshift Power Source > --- PROPULSION ------- Compact Wheel Subdweller Monowheel > --- UTILITY ---------- Small Storage Unit Utility Shielding > --- WEAPON ----------- Subdweller Beam Cannon Makeshift Axe > --- INVENTORY -------- Subdweller Power Source Machine Analyzer Subdweller Optics Beam Rifle Beam Rifle Spread Laser Spread Laser Subdweller Machine Gun [Rating: 16] Favorites ----------- Power Ion Engine Engine Ion Engine Propulsion Compact Wheel Wheel Compact Wheel Utility Small Storage Unit Storage Small Storage Unit Protection Utility Shielding Weapon Beam Rifle Energy Gun Beam Rifle Energy Cannon Subdweller Beam Cannon Ballistic Gun Subdweller Machine Gun Launcher Grenade Launcher Slashing Weapon Makeshift Axe Build | -11 -10 -10 ------- Run | Yrd Mat Sub Slots Evolved . | . . . Power . | . . . Propulsion . | . . . Utility . | . . . Weapon . | . . . Parts Attached 28 | 6 3 19 Power 4 | 1 . 3 Engine 4 | 1 . 3 Core . | . . . Reactor . | . . . Propulsion 6 | 2 . 4 Treads . | . . . Leg . | . . . Wheel 6 | 2 . 4 Hover . | . . . Flight . | . . . Utility 3 | 1 1 1 Device . | . . . Storage 1 | 1 . . Processor . | . . . Hackware . | . . . Protection 2 | . 1 1 Artifact . | . . . Weapon 15 | 2 2 11 Energy Gun 6 | 1 2 3 Energy Cannon 1 | . . 1 Ballistic Gun 5 | 1 . 4 Ballistic Cannon . | . . . Launcher 1 | . . 1 Special Weapon . | . . . Impact Weapon . | . . . Slashing Weapon 2 | . . 2 Piercing Weapon . | . . . Special Melee Weapon . | . . . Unidentified Prototypes . | . . . Parts Lost 6 | . . 6 Power 1 | . . 1 Propulsion 1 | . . 1 Utility 1 | . . 1 Weapon 3 | . . 3 Highest Loss Streak 3 | . . 3 To Critical Strikes . | . . . Average Backups 7 | . 4 7 Power . | . 1 . Propulsion . | . . . Utility 1 | . . 1 Weapon 4 | . 3 5 Tool/Special . | . . . Unused Backups 6 | . . 6 Power . | . . . Propulsion 1 | . . 1 Utility 2 | . . 2 Weapon 2 | . . 2 Tool/Special 1 | . . 1 Average Slot Usage (%) 96 | . 89 97 Engine 14 | . 14 14 Wheel 27 | . 28 27 Storage 14 | . 14 14 Protection 11 | . 4 12 Energy Gun 13 | . 21 12 Energy Cannon 4 | . . 4 Ballistic Gun 8 | . 6 8 Slashing Weapon 1 | . . 2 Peak Build Rating 16 | 6 10 16 Average Rating 11 | 4 7 11 On Entrance 5 | . 6 10 Naked Turns . | . . . Heaviest Build 23 | 11 17 23 Greatest Support 36 | 32 32 36 Greatest Overweight (x) . | . . . Average Overweight (x) . | . . . Largest Inventory Capacity 8 | 8 8 8 Average Capacity 7 | 6 8 8 Most Carried 8 | 1 7 8 Average Carried 7 | . 4 7 Final Capacity 8 | 8 8 8 Final Carried 7 | 1 7 7 Class Distribution -------------------- 85% | Mutant 14% | Scavenger-Mutant Dominant Class ---------------- Mutant | -10/Materials Mutant | -10/Subcaves Resources | -11 -10 -10 ----------- Run | Yrd Mat Sub Matter Collected 652 | 219 . 433 Remotely . | . . . Salvage Created 579 | . . 579 Parts 37 | . . 37 Haulers Intercepted . | . . . Recyclers Shooed . | . . . Parts Field Recycled . | . . . Retrieved Matter . | . . . Parts Self-Destructed 27 | . . 27 Prevented . | . . . Kills | -11 -10 -10 ------- Run | Yrd Mat Sub Combat Hostiles Destroyed 18 | . . 18 Guns 15 | . . 15 Cannons 2 | . . 2 AOE 1 | . . 1 Classes Destroyed 2 | . . 2 Swarmer 7 | . . 7 Subdweller 11 | . . 11 Best Kill Streak 6 | . . 6 Combat Bots Only 6 | . . 6 Max Kills in Single Turn 1 | . . 1 Gunslinging . | . . . Exploded 1 | . . 1 Melee . | . . . Uniques/NPCs Destroyed . | . . . Combat | -11 -10 -10 -------- Run | Yrd Mat Sub Hostile Shots Fired 87 | . . 87 Missed 30 | . . 30 Hits 57 | . . 57 Projectile 57 | . . 57 Critical Strikes 1 | . . 1 Damage Taken 1195 | . 17 1178 Core 267 | . . 267 Absorbed by Shields . | . . . Redirected to Shielding 16 | . . 16 Core Remaining (%) 100 | 100 . . Volleys Fired 59 | . 1 58 Largest 2 | . 2 2 Hottest 136 | . 70 136 Shots Fired 92 | . 2 90 Gun 84 | . 2 82 Cannon 7 | . . 7 Launcher 1 | . . 1 Special . | . . . Kinetic 28 | . 1 27 Thermal 63 | . 1 62 Explosive 1 | . . 1 Electromagnetic . | . . . Robot Hit Streak 43 | . 2 43 Robot Miss Streak 3 | . . 3 Penetration Max . | . . . Secondary Targets 4 | . . 4 Max Gunslinging Chain 1 | . . 1 Shots Hit Robots 68 | . 2 66 Core Hits 33 | . 2 31 Critical Kills . | . . . Critical Parts Destroyed . | . . . Critical Strikes 3 | . . 3 Burn 3 | . . 3 Melee Attacks 9 | . . 9 Impact . | . . . Slashing 9 | . . 9 Piercing . | . . . Sneak Attacks . | . . . Combat Hostiles . | . . . Follow-up Attacks . | . . . Damage Inflicted 1384 | . 20 1364 Guns 1094 | . 20 1074 Cannons 142 | . . 142 Explosions 148 | . . 148 Melee . | . . . Ramming . | . . . Kinetic 399 | . 7 392 Thermal 837 | . 13 824 Explosive 148 | . . 148 Electromagnetic . | . . . Impact . | . . . Slashing . | . . . Piercing . | . . . Highest Corruption . | . . . Average Corruption . | . . . Corruption Purged . | . . . Corruption Blocked . | . . . Overload Shots . | . . . Overflow Damage . | . . . Projectiles . | . . . Explosions . | . . . Melee . | . . . Knockbacks . | . . . Impact . | . . . Kinetic . | . . . Secondary . | . . . Self-Inflicted Damage . | . . . Shots . | . . . Rammed . | . . . Targets Rammed . | . . . Kicked . | . . . Crushed . | . . . Highest Temperature 354 | . 39 354 Average Temperature 97 | . 24 101 Received Heat Transfer 453 | . 9 444 Effects 2 | . . 2 Matter Decay 2 | . . 2 Siege Activations . | . . . Martial Activations . | . . . Shielding Activations . | . . . Robots Disrupted . | . . . Combat Hostiles . | . . . Robots Corrupted . | . . . Combat Hostiles . | . . . Parts Fried . | . . . Impact Corruptions . | . . . Robots Melted . | . . . Combat Hostiles . | . . . Parts Melted 6 | . . 6 Heat Transferred 1810 | . 37 1773 Parts Sabotaged . | . . . Parts Stolen . | . . . Parts Stripped . | . . . Power Chain Reactions . | . . . Alert | -11 -10 -10 ------- Run | Yrd Mat Sub Maximum Alert Level . | . . . Low Security (%) 100 | 100 100 . Level 1 . | . . . Level 2 . | . . . Level 3 . | . . . Level 4 . | . . . Level 5 . | . . . High Security . | . . . Max Security . | . . . Peak Influence . | . . . Initial . | . . . Average . | . . . Influence Increases 190 | . . 190 Destroy 0b10 Robot/C 140 | . . 140 Destroy Leader 20 | . . 20 Lose Combat Pursuer 30 | . . 30 Influence Decreases 190 | . . 190 Time Decay 160 | . . 160 Lost Part 30 | . . 30 Squads Dispatched . | . . . Investigation . | . . . Extermination . | . . . Reinforcement . | . . . Assault . | . . . Garrison . | . . . Intercept . | . . . Searches Triggered . | . . . Construction Impeded . | . . . Haulers Reinforced . | . . . Active Scanning Responses . | . . . Cargo Convoy Interrupts . | . . . Stealth | -11 -10 -10 --------- Run | Yrd Mat Sub Distress Signals . | . . . Communications Jammed . | . . . Distress Signals . | . . . Times Spotted 26 | . 2 24 Peak Tracking Total 4 | . 2 4 Tactical Retreats 1 | . . 1 Traps | -11 -10 -10 ------- Run | Yrd Mat Sub Traps Triggered 2 | . . 2 Indirectly . | . . . Trap Hack Attempts . | . . . Triggered . | . . . Disarmed . | . . . Reprogrammed . | . . . Reused . | . . . Traps Extracted . | . . . Installed . | . . . Triggered . | . . . Machines | -11 -10 -10 ---------- Run | Yrd Mat Sub Machines Disabled . | . . . Max in Single Turn . | . . . Machines Repaired . | . . . Machines Dismantled . | . . . Machines Sabotaged . | . . . Overloaded Fab Kills . | . . . Hacking | -11 -10 -10 --------- Run | Yrd Mat Sub Machines Accessed 1 | . . 1 Terminals . | . . . Fabricators . | . . . Repair Stations . | . . . Recycling Units . | . . . Scanalyzers . | . . . Garrison Access . | . . . Total Hacks 1 | . . 1 Successful 1 | . . 1 Failed . | . . . Catastrophic . | . . . Database Lockouts . | . . . Manual . | . . . Terminals . | . . . Fabricators . | . . . Repair Stations . | . . . Recycling Units . | . . . Scanalyzers . | . . . Garrison Access . | . . . Terminal Hacks 1 | . . 1 Open Door 1 | . . 1 Fabricator Hacks . | . . . Repair Station Hacks . | . . . Recycling Unit Hacks . | . . . Scanalyzer . | . . . Garrison Access Hacks . | . . . Unauthorized Hacks . | . . . Terminals . | . . . Fabricators . | . . . Repair Stations . | . . . Recycling Units . | . . . Scanalyzers . | . . . Garrison Access . | . . . Data Cores Recovered . | . . . Used . | . . . Hacking Detections . | . . . Full Trace Events . | . . . Feedback Events . | . . . Feedback Blocked . | . . . Robot Schematics Acquired . | . . . Robots Built . | . . . Authchips . | . . . Time . | . . . Total Robot Build Rating . | . . . Part Schematics Acquired . | . . . Parts Built . | . . . Authchips . | . . . Time . | . . . Total Part Build Rating . | . . . Parts Repaired . | . . . Time . | . . . Parts Recycled . | . . . Recycled Matter . | . . . Retrieved Matter . | . . . Retrieved Components . | . . . Parts Scanalyzed . | . . . Part Schematics Acquired . | . . . Parts Damaged . | . . . Bothacking | -11 -10 -10 ------------ Run | Yrd Mat Sub Used RIF Installer . | . . . Robots Hacked . | . . . Non-combat . | . . . Combat . | . . . Robot Hacks Applied . | . . . Relay Couplers Released . | . . . Fabnet Peak Effective % . | . . . Robots Rewired . | . . . Allies Hacked . | . . . Hacks Repelled . | . . . Allies | -11 -10 -10 -------- Run | Yrd Mat Sub Total Allies . | . . . Largest Group . | . . . Highest-Rated Group . | . . . Highest-Rated Ally . | . . . Total Orders . | . . . Ally Attacks . | . . . Total Damage . | . . . Kills . | . . . Allies Corrupted . | . . . Allies Melted . | . . . Intel | -11 -10 -10 ------- Run | Yrd Mat Sub Active Infowar (turns) . | . . . Robot Analysis Total . | . . . Derelict Logs Recovered 3 | . . 3 Drone Launches . | . . . Drone Recoveries . | . . . Exploration | -11 -10 -10 ------------- Run | Yrd Mat Sub Turns Passed 1634 | 44 124 1466 Spaces Moved 1305 | 35 101 1169 Core 1 | 1 . . Treads . | . . . Legs . | . . . Wheels 1304 | 34 101 1169 Hover . | . . . Flight . | . . . Fastest Speed 50 | 50 100 90 Average Speed 101 | 98 100 101 Slowest Speed 105 | 100 100 105 Overloaded Moves . | . . . Propulsion Burnouts . | . . . Robots Hopped . | . . . Potential Cave-ins . | . . . Cave-ins Triggered . | . . . Exploration Rate (%) 28 | 3 18 64 Regions Visited 2 Branch Regions 1 Pre-discovered Areas 1 | . . 1 Known Exits Taken . | . . . Unknown Exits Taken 2 | 1 1 . Scrap Searched 9 | . . 9 Spaces Dug 1 | . . 1 Terrain Destroyed 5 | . . 5 Melee . | . . . Projectile 1 | . . 1 AOE 4 | . . 4 Terrain Rammed . | . . . Walls Destroyed . | . . . Machines Disabled . | . . . Actions | -11 -10 -10 --------- Run | Yrd Mat Sub Total 1504 | 41 122 1341 Wait 65 | . 8 57 Move 1303 | 34 100 1169 Hop . | . . . Pick Up 19 | 1 8 10 Fast Attach 15 | 6 1 8 Attach 6 | . 2 4 Detach . | . . . Swap 12 | . . 12 Drop 16 | . 2 14 Fire 59 | . 1 58 Melee 9 | . . 9 Ram . | . . . Kick . | . . . Crush . | . . . Escape Stasis . | . . . Rewire . | . . . Trap . | . . . Miscellaneous . | . . . Route ------- -11/Scrapyard -10/Materials -10/Subcaves (discovered 3 exits: [*Mat x2] / [*Scr]) History --------- Turn | Location | Event 30 | -11/Scrapyard | Discovered new exit (range 15) 45 | -11/Scrapyard | Entered Materials 46 | -10/Materials | Met a group of wandering Federalists 167 | -10/Materials | Discovered new exit (range 3) 169 | -10/Materials | Entered Subcaves 170 | -10/Subcaves | Shifting Twisted Machinery released Sub. Power Source 170 | -10/Subcaves | Continued accompanying wandering Federalists (5) 170 | -10/Subcaves | Approached by a straggling Scientist 173 | -10/Subcaves | Shifting Twisted Machinery released Sub. Power Source 313 | -10/Subcaves | Build established: Mutant 381 | -10/Subcaves | Learned Materials terminal intel 491 | -10/Subcaves | A swath of the cavern ceiling suddenly collapsed 582 | -10/Subcaves | Learned Materials emergency access door positions 597 | -10/Subcaves | Discovered new exit (range 13) 647 | -10/Subcaves | Disturbed a concealed Subdweller 649 | -10/Subcaves | A Subdweller sparked back to life 649 | -10/Subcaves | A Subdweller sparked back to life 649 | -10/Subcaves | A Subdweller sparked back to life 694 | -10/Subcaves | Lost 3 parts (1n1u1w) 816 | -10/Subcaves | Discovered new exit (range 13) 881 | -10/Subcaves | Learned location of Zion (-7) 1196 | -10/Subcaves | Core integrity fell below 50% 1273 | -10/Subcaves | Core integrity fell below 20% 1320 | -10/Subcaves | Shifting Twisted Machinery released Flamer 1332 | -10/Subcaves | Shifting Twisted Machinery released Shrapnel Trap 1630 | -10/Subcaves | Disturbed a concealed Subdweller 1635 | -10/Subcaves | Destroyed by 3D-QV9(R) with Subdweller Machine Gun Last Messages --------------- Shrapnel Trap falls loose from the Twisted Machinery. 01432_ WL-N6N(R): "LEAVESUB!" 01451_ WL-N6N(R) destroyed. 01454_ Acquired 40 matter. 01455_ Dropped Sub. Monowheel. 01456_ Acquired Sub. Monowheel. 01482_ Dropped Sub. Monowheel. 01483_ Acquired Wheel. 01504_ Subatomizers dissect the Sub. Monowheel. 01566_ FG-4WX(R) destroyed. 01570_ JQ-1KB(R) destroyed. 01572_ Acquired 43 matter. 01628_ Searching scrap... 01628_ Found Sub. Laser. 01628_ Found Battle Cannon. 01628_ Found 61 Matter. 01630_ 3D-QV9(R) angrily emerges from the Twisted Machinery. 01631_ 3D-QV9(R): "ATK100%!" 01631_ Sub. Power Source destroyed. 01633_ Hvy. Battle Rifle destroyed. Map ----- +----------------------------------------------------+ | ?""### ### #??????????????????????????? | | ? """" #???????????????????????????? | | """" ## #???????????????????????????? | | """" ####?????????????????????????????????? | | *""""" ##????????????????????????????????????? | | " ######?????????????????????????????????? | | ##* ## ###???????????????????????????????? | | ####?## #???????????????????????????????? | | ??????## #???????????????????????????????? | | ???????# ####?##?????????????????????????? | | ???????# ## #????#????????????????????? | | ???????# ## #????????????????????? | | ??????## ### #????????????????????? | | ??????# ####?## #????????????????????? | | ??????# ##????# #????????????????????? | | ?###??# #???# ## ##????????????????????? | | ## #??# #???# ##????????????????????????? | | #??# ##???# ## #?????????????????????????? | | #### ###????## #?###?????????????????????????? | | #???????####?????????????????????????????? | | #????????????????????????????????????????? | | ### #????????????????????????????????????????? | | ###?## ##????????????????????????????????????????? | | #????###?????????????#######?????????????????????? | | ?????????????????????# # ]#?????????????????????? | | ###??????????????????# & @%#?????????????????????? | | ""##?????????????????##